fUSD/lending_fUSD_20240317
["ID","MTS","AMOUNT","RATE_DAILY","PERIOD"]
[319360473,1710699032486,-617.49788098,0.00011906,2]
[319360474,1710699032496,-449.49604415,0.00011906,2]
[319360475,1710699032506,-500.0,0.00011906,2]
[319360476,1710699032515,-217.21637613,0.00011907,2]
[319360477,1710699032524,-484.03196119,0.00011907,2]
[319360478,1710699032534,-1053.13691917,0.00011907,2]
[319360479,1710699032544,-1060.34235889,0.00011907,2]
[319360480,1710699032553,-231.41436984,0.00011908,2]
[319360481,1710699032563,-205.24214883,0.00011908,2]
[319360482,1710699032572,-200.80824684,0.00011908,2]
[319360483,1710699032582,-155.0,0.00011909,2]
[319360484,1710699032591,-155.0,0.00011909,2]
[319360485,1710699032601,-2342.5364982,0.00011909,2]
[319360486,1710699032610,-155.0,0.00011909,2]
[319360487,1710699032620,-403.42000905,0.00011909,2]
[319360488,1710699032630,-269.98525985,0.00011909,2]
[319360489,1710699032639,-35002.86712924,0.00011909,2]
[319360490,1710699032648,-1883.28731315,0.0001191,2]
[319360491,1710699032657,-191.3833475,0.0001191,2]
[319360492,1710699032669,-155.0,0.0001191,2]
[319360493,1710699032678,-155.0,0.0001191,2]
[319360494,1710699032687,-4694.05034765,0.0001191,2]
[319360495,1710699032696,-484.86201685,0.00011911,2]
[319360496,1710699032705,-451.16891836,0.00011911,2]
[319360497,1710699032714,-155.0,0.00011911,2]
[319360498,1710699032724,-23182.13279702,0.00011911,2]
[319360499,1710699032733,-10540.67804284,0.00011913,2]
[319360500,1710699032742,-157.30825634,0.00011915,2]
[319360501,1710699032752,-157.30825625,0.0001197,2]
[319360502,1710699032761,-150.0,0.00012014,2]
[319360503,1710699032769,-150.0,0.00012014,2]
[319360504,1710699032778,-6053.66,0.00012014,2]
[319360505,1710699032787,-150.99,0.00012014,2]
[319360506,1710699032796,-160.79260589,0.00012016,2]
[319360507,1710699033005,-597.35932298,0.00012016,2]
[319360508,1710699033016,-2653.88334222,0.00012016,2]
[319360509,1710699033097,-2065.22158607,0.00012016,2]
[319360510,1710699033143,-853.15156266,0.00012016,2]
[319360511,1710699033155,-741.8811006,0.00012016,2]
[319360512,1710699033169,-61.94047958,0.00012016,2]
[319360513,1710699033178,-224.99,0.00012016,2]
[319360514,1710699033187,-150.99,0.00012017,2]
[319360515,1710699033196,-157.30825625,0.00012025,2]
[319360516,1710699033205,-371.6143431,0.0001203,2]
[319360517,1710699033219,-522.35489817,0.0001203,2]
[319360518,1710699033229,-4247.70006753,0.00012031,2]
[319360519,1710699033252,-3427.41654436,0.00012031,2]
[319360527,1710699034206,-2324.87338811,0.00012031,2]
[319360528,1710699034217,-150.99,0.00012031,2]
[319360529,1710699034227,-1466.33,0.00012034,2]
[319360530,1710699034236,-157.30825625,0.0001208,2]
[319360531,1710699034246,-705.11,0.00012111,2]
[319360532,1710699034256,-7822.14,0.00012121,2]
[319360533,1710699034265,-596.8,0.00012124,2]
[319360534,1710699034278,-157.30825625,0.00012136,2]
[319360535,1710699034288,-157.30825625,0.00012191,2]
[319360536,1710699034297,-157.30825625,0.00012246,2]
[319360537,1710699034306,-157.30825625,0.00012301,2]
[319360538,1710699034316,-157.30825625,0.00012356,2]
[319360539,1710699034325,-157.30825625,0.00012411,2]
[319360540,1710699034334,-157.30825625,0.00012466,2]
[319360541,1710699034344,-157.30825625,0.00012521,2]
[319360542,1710699034355,-157.30825625,0.00012577,2]
[319360543,1710699034364,-157.30825625,0.00012632,2]
[319360544,1710699034374,-249.73616254,0.00012638,2]
[319360545,1710699034383,-56608.0,0.00012639,2]
[319360546,1710699034392,-157.30825625,0.00012687,2]
[319360547,1710699034401,-189.05017885,0.00012702,2]
[319360548,1710699034411,-250.0,0.0001271,2]
[319360549,1710699034422,-157.30825625,0.00012742,2]
[319360550,1710699034431,-173.05,0.00012786,2]
[319360551,1710699034440,-3487.72438577,0.00012789,2]
[319360552,1710699034449,-10922.90630221,0.00012797,2]
[319360553,1710699034459,-157.30825625,0.00012797,2]
[319360554,1710699034468,-306370.4575231,0.00012799,2]
[319360555,1710699034480,-5277.9869215,0.00012799,2]
[319360556,1710699034492,-69288.04330198,0.00012799,2]
[319360557,1710699034507,-7016.3,0.00012799,2]
[319360558,1710699034518,-253.1244167,0.00012799,2]
[319360559,1710699034529,-927.00262819,0.00012799,2]
[319360560,1710699034541,-956.37052962,0.00012799,2]
[319360561,1710699034552,-4404.4,0.00012799,2]
[319360562,1710699034563,-468.237,0.00012799,2]
[319360563,1710699034575,-1487.50061937,0.00012799,2]
[319360564,1710699034593,-1983.41123965,0.00012799,2]
[319360565,1710699034605,-5000.0,0.00012799,2]
[319360575,1710699038548,-155.0,0.00011903,2]
[319360577,1710699038558,-155.0,0.00011903,2]
[319360578,1710699038569,-155.0,0.00011903,2]
[319360579,1710699038578,-1770.78218068,0.00011903,2]
[319360580,1710699038589,-2153.18185194,0.00011903,2]
[319360581,1710699038608,-6616.71401022,0.00011903,2]
[319360582,1710699038618,-484.86201685,0.00011903,2]
[319360583,1710699038627,-172731.20343788,0.00012799,2]
[319360584,1710699038790,-10675.04695135,0.00012799,2]
[319360585,1710699038802,-436145.52383865,0.00012799,2]
[319360586,1710699038811,-1900.0,0.000128,4]
[319360587,1710699038820,-10334.67351018,0.00012865,2]
[319360588,1710699038829,-165.8,0.0001288,2]
[319360589,1710699038839,-423.79683076,0.00012894,2]
[319360590,1710699038849,-388.97308632,0.00012894,2]
[319360591,1710699038860,-1793.80279745,0.00012894,2]
[319360592,1710699038869,-155.30236405,0.00012894,2]
[319360593,1710699038879,-1106.7836089,0.00012895,2]
[319360594,1710699038889,-484149.54983772,0.00012897,2]
[319360595,1710699038899,-184.65274303,0.00012899,2]
[319360596,1710699038908,-3237.211825,0.00012899,2]
[319360597,1710699038918,-316.19534178,0.000129,2]
[319360598,1710699038927,-316.19534155,0.000129,2]
[319360599,1710699038936,-316.19534155,0.000129,2]
[319360600,1710699038945,-316.19534155,0.000129,2]
[319360601,1710699038955,-316.19534155,0.000129,2]
[319360602,1710699038967,-316.19534155,0.000129,2]
[319360603,1710699038978,-316.19534155,0.000129,2]
[319360604,1710699038988,-316.19534155,0.000129,2]
[319360605,1710699038999,-316.19534155,0.000129,2]
[319360606,1710699039009,-3800.0,0.000129,4]
[319360607,1710699039018,-316.19534155,0.00012909,2]
[319360608,1710699039029,-316.19534155,0.00012921,2]
[319360610,1710699039038,-316.19534155,0.00012933,2]
[319360611,1710699039048,-316.19534155,0.00012946,2]
[319360612,1710699039058,-316.19534155,0.00012958,2]
[319360613,1710699039070,-316.19534155,0.00012971,2]
[319360614,1710699039080,-316.19534155,0.00012983,2]
[319360615,1710699039089,-2290.10217254,0.00012992,2]
[319360616,1710699039098,-5664.16029458,0.00012993,2]
[319360617,1710699039107,-316.19534155,0.00012995,2]
[319360618,1710699039117,-498.68481426,0.00012996,2]
[319360619,1710699039126,-172.79108969,0.00012996,2]
[319360620,1710699039136,-199.78786339,0.00012996,2]
[319360621,1710699039145,-289.43497645,0.00012996,2]
[319360622,1710699039154,-170.02567313,0.00012996,2]
[319360623,1710699039164,-262.68456776,0.00012996,2]
[319360624,1710699039173,-155.62861415,0.00012996,2]
[319360625,1710699039182,-197.64281249,0.00012996,2]
[319360626,1710699039191,-199.09152115,0.00012996,2]
[319360627,1710699039201,-155.4665216,0.00012996,2]
[319360628,1710699039210,-199.51768165,0.00012996,2]
[319360629,1710699039220,-155.0,0.00012996,2]
[319360630,1710699039229,-2971.50645971,0.00012996,2]
[319360631,1710699039239,-295.76164053,0.00012996,2]
[319360632,1710699039251,-168.96816735,0.00012996,2]
[319360633,1710699039260,-272.56425418,0.00012996,2]
[319360634,1710699039271,-303.18703235,0.00012996,2]
[319360635,1710699039280,-244.7251874,0.00012996,2]
[319360636,1710699039289,-174.77432795,0.00012996,2]
[319360637,1710699039299,-155.4366584,0.00012996,2]
[319360638,1710699039308,-196.39643895,0.00012996,2]
[319360639,1710699039317,-155.0,0.00012996,2]
[319360640,1710699039328,-194.58762539,0.00012996,2]
[319360641,1710699039337,-170.89389618,0.00012996,2]
[319360642,1710699039348,-155.0,0.00012996,2]
[319360643,1710699039357,-639.68383275,0.00012996,7]
[319360644,1710699039368,-202.46413599,0.00012996,2]
[319360645,1710699039377,-155.0,0.00012996,2]
[319360646,1710699039386,-290.4902482,0.00012997,2]
[319360647,1710699039395,-232.88399808,0.00012997,2]
[319360648,1710699039405,-155.8865167,0.00012997,2]
[319360649,1710699039415,-200.13954254,0.00012997,2]
[319360650,1710699039425,-155.44212634,0.00012997,2]
[319360651,1710699039434,-1009.76638174,0.00012997,2]
[319360652,1710699039444,-361.22596683,0.00012997,2]
[319360653,1710699039454,-155.18943374,0.00012997,2]
[319360654,1710699039463,-178.27,0.00013,2]
[319360655,1710699039472,-414.78,0.00013,2]
[319360656,1710699039482,-405.86,0.00013,2]
[319360657,1710699039491,-300.0,0.00013,2]
[319360658,1710699039501,-316.19534155,0.00013008,2]
[319360659,1710699039510,-316.19534155,0.0001302,2]
[319360660,1710699039520,-316.19534155,0.00013032,2]
[319360661,1710699039529,-316.19534155,0.00013045,2]
[319360662,1710699039539,-316.19534155,0.00013057,2]
[319360663,1710699039548,-316.19534155,0.0001307,2]
[319360664,1710699039558,-316.19534155,0.00013082,2]
[319360665,1710699039567,-316.19534155,0.00013094,2]
[319360666,1710699039576,-5700.0,0.000131,4]
[319360667,1710699039585,-3487.72438577,0.00013102,2]
[319360668,1710699039595,-316.19534155,0.00013107,2]
[319360669,1710699039605,-316.19534155,0.00013119,2]
[319360670,1710699039615,-316.19534155,0.00013132,2]
[319360671,1710699039625,-316.19534155,0.00013144,2]
[319360672,1710699039634,-3237.21182499,0.00013149,2]
[319360673,1710699039643,-316.19534155,0.00013156,2]
[319360674,1710699039652,-316.19534155,0.00013169,2]
[319360675,1710699039661,-316.19534155,0.00013181,2]
[319360676,1710699039672,-316.19534155,0.00013194,2]
[319360677,1710699039681,-516.61,0.000132,2]
[319360678,1710699039690,-150.0,0.000132,2]
[319360679,1710699039699,-307.29,0.000132,2]
[319360680,1710699039708,-279.35,0.000132,2]
[319360681,1710699039717,-7700.0,0.000132,4]
[319360682,1710699039726,-316.19534155,0.00013206,2]
[319360683,1710699039735,-210.0,0.00013216,2]
[319360684,1710699039745,-210.0,0.00013216,2]
[319360685,1710699039753,-316.19534155,0.00013218,2]
[319360686,1710699039762,-316.19534155,0.00013231,2]
[319360687,1710699039771,-316.19534155,0.00013243,2]
[319360688,1710699039780,-316.19534155,0.00013256,2]
[319360689,1710699039790,-316.19534155,0.00013268,2]
[319360690,1710699039799,-10906.57133595,0.0001327,2]
[319360691,1710699039808,-316.19534155,0.0001328,2]
[319360692,1710699039818,-316.19534155,0.00013293,2]
[319360693,1710699039828,-9600.0,0.000133,4]
[319360694,1710699039837,-316.19534155,0.00013305,2]
[319360695,1710699039846,-316.19534155,0.00013318,2]
[319360696,1710699039855,-316.19534155,0.0001333,2]
[319360697,1710699039865,-316.19534155,0.00013342,2]
[319360698,1710699039875,-316.19534155,0.00013355,2]
[319360699,1710699039884,-316.19534155,0.00013367,2]
[319360700,1710699039894,-316.19534155,0.00013379,2]
[319360701,1710699039903,-316.19534155,0.00013392,2]
[319360702,1710699039913,-3237.21182499,0.000134,2]
[319360703,1710699039924,-917.28,0.000134,2]
[319360704,1710699039933,-1900.0,0.000134,4]
[319360705,1710699039942,-316.19534155,0.00013404,2]
[319360706,1710699039951,-316.19534155,0.00013417,2]
[319360707,1710699039963,-10906.57133595,0.00013427,2]
[319360708,1710699039973,-316.19534155,0.00013429,2]
[319360709,1710699039986,-316.19534155,0.00013441,2]
[319360710,1710699039995,-316.19534155,0.00013454,2]
[319360711,1710699040004,-173.05,0.00013465,2]
[319360712,1710699040014,-316.19534155,0.00013466,2]
[319360713,1710699040023,-316.19534155,0.00013479,2]
[319360714,1710699040032,-316.19534155,0.00013491,2]
[319360715,1710699040041,-1900.0,0.000135,4]
[319360716,1710699040050,-316.19534155,0.00013503,2]
[319360717,1710699040060,-316.19534155,0.00013516,2]
[319360718,1710699040069,-316.19534155,0.00013528,2]
[319360719,1710699040079,-414.91,0.00013534,2]
[319360721,1710699040088,-150.0,0.00013534,2]
[319360722,1710699040097,-516.7,0.00013534,2]
[319360723,1710699040106,-150.0,0.00013534,2]
[319360724,1710699040116,-150.0,0.00013534,2]
[319360726,1710699040125,-150.0,0.00013534,2]
[319360728,1710699040134,-150.0,0.00013534,2]
[319360729,1710699040143,-414.91,0.00013534,2]
[319360730,1710699040153,-301.74,0.00013534,2]
[319360731,1710699040162,-516.7,0.00013534,2]
[319360732,1710699040175,-150.0,0.00013534,2]
[319360733,1710699040184,-150.0,0.00013534,2]
[319360734,1710699040193,-346.78,0.00013534,2]
[319360735,1710699040202,-150.0,0.00013534,2]
[319360736,1710699040211,-150.0,0.00013534,2]
[319360737,1710699040221,-150.0,0.00013534,2]
[319360738,1710699040230,-414.91,0.00013534,2]
[319360739,1710699040240,-150.0,0.00013534,2]
[319360740,1710699040249,-150.0,0.00013534,2]
[319360741,1710699040258,-516.7,0.00013534,2]
[319360742,1710699040268,-346.78,0.00013534,2]
[319360743,1710699040278,-150.0,0.00013534,2]
[319360744,1710699040288,-150.0,0.00013534,2]
[319360745,1710699040299,-150.0,0.00013534,2]
[319360746,1710699040310,-150.0,0.00013534,2]
[319360747,1710699040320,-150.0,0.00013534,2]
[319360748,1710699040331,-516.7,0.00013534,2]
[319360749,1710699040341,-346.78,0.00013534,2]
[319360750,1710699040351,-150.0,0.00013534,2]
[319360751,1710699040361,-150.0,0.00013534,2]
[319360752,1710699040371,-150.0,0.00013534,2]
[319360753,1710699040381,-414.91,0.00013534,2]
[319360754,1710699040391,-150.0,0.00013534,2]
[319360755,1710699040400,-346.78,0.00013534,2]
[319360756,1710699040411,-150.0,0.00013534,2]
[319360757,1710699040424,-414.91,0.00013534,2]
[319360758,1710699040433,-516.7,0.00013534,2]
[319360759,1710699040443,-150.0,0.00013534,2]
[319360760,1710699040453,-346.78,0.00013534,2]
[319360761,1710699040463,-150.0,0.00013534,2]
[319360762,1710699040473,-516.7,0.00013534,2]
[319360763,1710699040482,-414.91,0.00013534,2]
[319360764,1710699040492,-150.0,0.00013534,2]
[319360765,1710699040502,-346.78,0.00013534,2]
[319360766,1710699040512,-150.0,0.00013534,2]
[319360767,1710699040522,-150.0,0.00013534,2]
[319360768,1710699040531,-516.7,0.00013534,2]
[319360769,1710699040548,-150.0,0.00013534,2]
[319360770,1710699040557,-346.78,0.00013534,2]
[319360771,1710699040566,-150.0,0.00013534,2]
[319360772,1710699040576,-150.0,0.00013534,2]
[319360773,1710699040585,-516.7,0.00013534,2]
[319360774,1710699040594,-414.91,0.00013534,2]
[319360775,1710699040602,-150.0,0.00013534,2]
[319360776,1710699040611,-346.78,0.00013534,2]
[319360777,1710699040618,-150.0,0.00013534,2]
[319360778,1710699040627,-516.7,0.00013534,2]
[319360779,1710699040636,-414.91,0.00013534,2]
[319360780,1710699040645,-150.0,0.00013534,2]
[319360781,1710699040654,-150.0,0.00013534,2]
[319360782,1710699040663,-150.0,0.00013534,2]
[319360783,1710699040674,-516.7,0.00013534,2]
[319360784,1710699040683,-414.91,0.00013534,2]
[319360785,1710699040692,-346.78,0.00013534,2]
[319360786,1710699040701,-414.91,0.00013534,2]
[319360787,1710699040711,-516.7,0.00013534,2]
[319360788,1710699040720,-150.0,0.00013534,2]
[319360789,1710699040729,-516.7,0.00013534,2]
[319360790,1710699040738,-414.91,0.00013534,2]
[319360791,1710699040747,-516.7,0.00013534,2]
[319360792,1710699040757,-414.91,0.00013534,2]
[319360793,1710699040766,-150.0,0.00013534,2]
[319360794,1710699040775,-516.7,0.00013534,2]
[319360795,1710699040784,-414.91,0.00013534,2]
[319360796,1710699040794,-150.0,0.00013534,2]
[319360797,1710699040803,-414.91,0.00013534,2]
[319360798,1710699040812,-150.0,0.00013534,2]
[319360799,1710699040821,-150.0,0.00013534,2]
[319360800,1710699040830,-150.0,0.00013534,2]
[319360801,1710699040840,-185.87,0.00013534,2]
[319360802,1710699040850,-150.0,0.00013534,2]
[319360803,1710699040859,-150.0,0.00013534,2]
[319360804,1710699040869,-150.0,0.00013534,2]
[319360805,1710699040878,-150.0,0.00013534,2]
[319360807,1710699040888,-150.0,0.00013534,2]
[319360809,1710699040897,-150.0,0.00013534,2]
[319360811,1710699040907,-150.0,0.00013534,2]
[319360813,1710699040917,-150.0,0.00013534,2]
[319360815,1710699040927,-150.0,0.00013534,2]
[319360817,1710699040936,-150.0,0.00013534,2]
[319360819,1710699040944,-150.0,0.00013534,2]
[319360821,1710699040953,-150.0,0.00013534,2]
[319360823,1710699040963,-150.0,0.00013534,2]
[319360825,1710699040976,-150.0,0.00013534,2]
[319360827,1710699040985,-150.0,0.00013534,2]
[319360829,1710699040995,-830.9,0.00013534,2]
[319360831,1710699041004,-752.29,0.00013534,2]
[319360833,1710699041014,-150.0,0.00013534,2]
[319360835,1710699041023,-150.0,0.00013534,2]
[319360837,1710699041032,-150.0,0.00013534,2]
[319360839,1710699041042,-922.44,0.00013534,2]
[319360841,1710699041054,-150.0,0.00013534,2]
[319360843,1710699041063,-408.41,0.00013534,2]
[319360845,1710699041073,-922.44,0.00013534,2]
[319360846,1710699041082,-922.44,0.00013534,2]
[319360847,1710699041091,-408.41,0.00013534,2]
[319360848,1710699041100,-408.41,0.00013534,2]
[319360849,1710699041109,-408.41,0.00013534,2]
[319360850,1710699041120,-316.19534155,0.00013541,2]
[319360851,1710699041129,-235.93377517,0.00013545,2]
[319360852,1710699041138,-254.18459152,0.00013546,2]
[319360853,1710699041148,-178.27,0.00013548,2]
[319360854,1710699041157,-316.19534155,0.00013553,2]
[319360855,1710699041168,-316.19534155,0.00013565,2]
[319360856,1710699041177,-316.19534155,0.00013578,2]
[319360857,1710699041189,-10906.57133595,0.00013585,2]
[319360858,1710699041200,-316.19534155,0.0001359,2]
[319360859,1710699041210,-1900.0,0.000136,4]
[319360860,1710699041219,-316.19534155,0.00013603,2]
[319360861,1710699041229,-316.19534155,0.00013615,2]
[319360862,1710699041239,-316.19534155,0.00013627,2]
[319360863,1710699041248,-316.19534155,0.0001364,2]
[319360864,1710699041257,-596.8,0.0001364,2]
[319360865,1710699041267,-3237.21182499,0.0001365,2]
[319360866,1710699041277,-316.19534155,0.00013652,2]
[319360867,1710699041287,-316.19534155,0.00013665,2]
[319360868,1710699041296,-316.19534155,0.00013677,2]
[319360869,1710699041306,-316.19534155,0.00013689,2]
[319360870,1710699041316,-250.0,0.00013699,2]
[319360871,1710699041326,-278.46,0.00013699,2]
[319360872,1710699041335,-2099.37,0.00013699,2]
[319360873,1710699041344,-1900.0,0.000137,5]
[319360874,1710699041354,-316.19534155,0.00013702,2]
[319360875,1710699041363,-316.19534155,0.00013714,2]
[319360876,1710699041373,-316.19534155,0.00013726,2]
[319360877,1710699041383,-316.19534155,0.00013739,2]
[319360878,1710699041393,-10906.57133595,0.00013742,2]
[319360879,1710699041403,-316.19534155,0.00013751,2]
[319360880,1710699041412,-316.19534155,0.00013764,2]
[319360881,1710699041430,-316.19534155,0.00013776,2]
[319360882,1710699041440,-316.19534155,0.00013788,2]
[319360883,1710699041451,-2345.0,0.000138,5]
[319360884,1710699041460,-316.19534155,0.00013801,2]
[319360885,1710699041470,-316.19534155,0.00013813,2]
[319360886,1710699041479,-316.19534155,0.00013826,2]
[319360887,1710699041489,-316.19534155,0.00013838,2]
[319360888,1710699041499,-316.19534155,0.0001385,2]
[319360889,1710699041509,-316.19534155,0.00013863,2]
[319360890,1710699041519,-316.19534155,0.00013875,2]
[319360891,1710699041529,-316.19534155,0.00013888,2]
[319360892,1710699041539,-408.41,0.0001389,2]
[319360893,1710699041548,-408.41,0.0001389,2]
[319360894,1710699041558,-408.41,0.0001389,2]
[319360895,1710699041567,-814.18,0.0001389,2]
[319360896,1710699041577,-8710.7691,0.00013898,2]
[319360897,1710699041586,-408.41,0.000139,2]
[319360898,1710699041596,-408.41,0.000139,2]
[319360899,1710699041605,-3237.21182499,0.000139,2]
[319360900,1710699041614,-316.19534155,0.000139,2]
[319360901,1710699041624,-10906.57133595,0.000139,2]
[319360902,1710699041633,-1808.2889075,0.000139,2]
[319360903,1710699041642,-11780.35557221,0.000139,2]
[319360904,1710699041651,-3990.00914707,0.000139,2]
[319360905,1710699041661,-13782.05020912,0.000139,2]
[319360906,1710699041674,-3487.72438577,0.0001399,2]
[319360907,1710699041683,-22557.32230282,0.00013997,2]
[319360908,1710699041692,-5504.19849091,0.00013998,2]
[319360909,1710699041704,-1050.61091459,0.00013998,2]
[319360910,1710699041714,-184.00143185,0.00013998,2]
[319360911,1710699041723,-234.28710735,0.00013998,2]
[319360912,1710699041732,-444.51426008,0.00013998,2]
[319360913,1710699041742,-222.26174525,0.00013998,2]
[319360914,1710699041752,-155.0,0.00013998,2]
[319360915,1710699041761,-160.34141221,0.00013998,2]
[319360916,1710699041770,-160.18712445,0.00013998,2]
[319360917,1710699041781,-158.47187896,0.00013998,2]
[319360918,1710699041790,-1047.72904862,0.00013998,2]
[319360919,1710699041800,-340.46477487,0.00013998,2]
[319360920,1710699041809,-559.10874154,0.00013998,2]
[319360921,1710699041818,-155.0,0.00013999,2]
[319360922,1710699041828,-336.99162749,0.00013999,5]
[319360923,1710699041837,-336.99162749,0.00013999,5]
[319360924,1710699041847,-300.0,0.00013999,2]
[319360925,1710699041857,-391.48625811,0.00013999,5]
[319360926,1710699041866,-391.48625811,0.00013999,5]
[319360927,1710699041875,-329.95793078,0.00013999,5]
[319360928,1710699041885,-329.95793078,0.00013999,5]
[319360929,1710699041894,-329.95793079,0.00013999,5]
[319360930,1710699041904,-300.0,0.00013999,2]
[319360931,1710699041913,-941.90984291,0.00013999,2]
[319360932,1710699041925,-321.7684959,0.00013999,5]
[319360933,1710699041935,-321.7684959,0.00013999,5]
[319360934,1710699041944,-881.58811239,0.00013999,2]
[319360935,1710699041953,-315.03662065,0.00013999,5]
[319360936,1710699041964,-315.03662065,0.00013999,5]
[319360937,1710699041974,-300.0,0.00013999,2]
[319360938,1710699041986,-16279053.71189114,0.00014,2]
[319360939,1710699041995,-7585.40772748,0.00014,2]
[319360940,1710699042004,-21762600.96495406,0.00014,2]
[319360941,1710699042382,-18543382.0041681,0.00014,2]
[319360942,1710699042395,-1853890.38199135,0.00014,2]
[319360943,1710699042407,-1785.4318872,0.00014,2]
[319360944,1710699042421,-357.0106261,0.00014,2]
[319360945,1710699042436,-51040.198062,0.00014,2]
[319360946,1710699042449,-4065.12336001,0.00014,2]
[319360947,1710699042467,-574.00612124,0.00014,2]
[319360948,1710699042529,-144678.17204967,0.00014,2]
[319360949,1710699042540,-1179.98741383,0.00014,2]
[319360950,1710699042553,-1942.37721319,0.00014,2]
[319360951,1710699042576,-1378.71177112,0.00014,2]
[319360952,1710699042587,-1856.18689393,0.00014,2]
[319360953,1710699042599,-1046.7296758,0.00014,2]
[319360954,1710699042610,-641.10627934,0.00014,2]
[319360955,1710699042621,-5407.98705331,0.00014,2]
[319360956,1710699042632,-21799.99999986,0.00014,2]
[319360957,1710699042642,-307.3721682,0.00014,2]
[319360961,1710699043367,-112037.38075224,0.00014,2]
[319360962,1710699043428,-457.72144755,0.00014,2]
[319360965,1710699043550,-169.98444692,0.00013997,2]
[319360966,1710699043561,-41355.55672361,0.00014,2]
[319360967,1710699043731,-6036.48575359,0.00014,2]
[319360968,1710699043743,-18626.55453494,0.00014,2]
[319360991,1710699046404,-206.30502371,0.00013997,2]
[319360992,1710699046414,-452.82480752,0.00013997,2]
[319360993,1710699046426,-2917.98325353,0.00013997,2]
[319360994,1710699046436,-502.94674647,0.00013997,2]
[319360995,1710699046447,-113.55204247,0.00013997,2]
[319360996,1710699046457,-449.49604415,0.00013997,2]
[319360997,1710699046466,-1252.65191338,0.00013997,2]
[319360998,1710699046477,-4097.88154873,0.00013997,2]
[319360999,1710699046487,-193.48944884,0.00013998,2]
[319361000,1710699046496,-372.44078283,0.00013998,2]
[319361001,1710699046505,-155.8193,0.00013998,2]
[319361002,1710699046514,-288452.7957982,0.00014,2]
[319361004,1710699046780,-2811.72540915,0.00014,2]
[319361006,1710699046811,-200.91989574,0.00013999,2]
[319361007,1710699046820,-99.08010426,0.00014,2]
[319361008,1710699046836,-406.69858493,0.00014,2]
[319361009,1710699063840,257.39405614,0.000232,120]
[319361011,1710699230461,763.92,0.00010736,2]
[319361012,1710699288721,805.73712108,0.00010736,2]
[319361013,1710699304555,500.0,0.00010736,2]
[319361014,1710699365160,939.36246232,0.00010736,2]
[319361015,1710699365689,1374.08349083,0.00010736,2]
[319361016,1710699373175,317.34861265,0.00010736,2]
[319361017,1710699385624,458.85765804,0.00010736,2]
[319361018,1710699389729,341.32138803,0.00010736,2]
[319361019,1710699391045,323.4295251,0.00010736,2]
[319361020,1710699392250,287.31978199,0.00010736,2]
[319361021,1710699395028,23477.22316725,0.00010736,2]
[319361022,1710699397309,290.89652637,0.00010736,2]
[319361023,1710699399058,19555.90483113,0.00010736,2]
[319361024,1710699400793,807.41024807,0.00010736,2]
[319361025,1710699417056,8400.38336173,0.00010736,2]
[319361026,1710699580901,7644.69,0.0001176,2]
[319361027,1710699593630,1099.82,0.00011787,2]
[319361028,1710699623746,358.08,0.00011825,2]
[319361029,1710699754065,250.0,0.00011239,2]
[319361030,1710699755007,745.93,9.322e-05,2]
[319361031,1710699755217,745.93,0.00011585,2]
[319361032,1710699763683,212.80351229,0.00011348,2]
[319361033,1710699763703,1000.0,0.00011348,2]
[319361034,1710699763722,919.69648771,0.00011348,2]
[319361035,1710699776928,80.30351229,0.00011502,2]
[319361036,1710699776948,419.69648771,0.00011502,2]
[319361037,1710699807870,157.79,0.00011239,2]
[319361038,1710699843162,422.51351229,0.00011239,2]
[319361039,1710699843216,1429.90648771,0.00011239,2]
[319361040,1710699876704,3325.31,0.00011186,2]
[319361041,1710699938630,200.0,0.00011171,2]
[319361042,1710699986482,186.57,0.00011158,2]
[319361043,1710699988038,239.66,0.00011158,2]